bitfinex/quotes_SOLUSD_20250517
["timestamp","ask_amount","ask_price","bid_price","bid_amount"]
[1747520224197,138.11983306,164.67,164.61,8.0342]
[1747520224393,138.11983306,164.67,164.64,10.33253432]
[1747520225107,138.11983306,164.67,164.66,10.33253432]
[1747520225589,138.11983306,164.67,164.61,8.0342]
[1747520225797,20.58,164.7,164.64,10.33253432]
[1747520225798,6.07348921,164.65,164.64,10.33253432]
[1747520226496,6.07348921,164.65,164.63,10.33253432]
[1747520227217,144.19307296,164.66,164.63,10.33253432]
[1747520227810,144.19307296,164.66,164.61,8.0342]
[1747520228004,144.19307296,164.66,164.63,10.33253432]
[1747520228196,144.19307296,164.66,164.64,10.33253432]
[1747520230008,144.19307296,164.66,164.63,10.33253432]
[1747520230815,144.19307296,164.66,164.61,8.0342]
[1747520230816,144.19307296,164.66,164.64,10.33253432]
[1747520231404,144.19307296,164.66,164.63,10.33253432]
[1747520233002,144.19307296,164.66,164.65,10.33253432]
[1747520233003,138.11983306,164.66,164.65,10.33253432]
[1747520235014,138.11983306,164.66,164.65,16.40602353]
[1747520235404,138.11983306,164.71,164.65,36.92602353]
[1747520235711,154.52377487,164.71,164.65,1.21434415]
[1747520235917,154.52377487,164.71,164.67,10.33253432]
[1747520236718,144.19124055,164.71,164.67,10.33253432]
[1747520237318,154.52377487,164.71,164.67,10.33253432]
[1747520237522,154.52377487,164.71,164.66,10.33253432]
[1747520237918,16.4045484,164.69,164.64,10.33253432]
[1747520238811,16.4045484,164.69,164.65,10.33253432]
[1747520239120,6.07201408,164.69,164.65,10.33253432]
[1747520239725,16.4045484,164.69,164.65,10.33253432]
[1747520241036,6.07201408,164.69,164.65,10.33253432]
[1747520242821,6.07201408,164.69,164.66,10.33253432]
[1747520243039,6.07164541,164.7,164.66,10.33253432]
[1747520243823,16.40417973,164.7,164.62,6.07459603]
[1747520244014,16.40417973,164.7,164.65,10.33253432]
[1747520244215,6.07164541,164.7,164.66,10.33253432]
[1747520245121,144.19123006,164.71,164.68,10.33253432]
[1747520245438,154.52376438,164.71,164.67,10.33253432]
[1747520245642,10.33253432,164.7,164.62,20.5]
[1747520245846,10.33253432,164.7,164.65,10.33253432]
[1747520246026,10.33253432,164.69,164.64,10.33253432]
[1747520246227,138.11983306,164.68,164.61,14.10903049]
[1747520246432,138.11983306,164.67,164.63,10.33253432]
[1747520247272,6.07312036,164.66,164.63,10.33253432]
[1747520247622,138.11983306,164.67,164.63,10.33253432]
[1747520247824,138.11983306,164.67,164.65,10.33253432]
[1747520248663,144.19279054,164.67,164.65,10.33253432]
[1747520249475,144.19279054,164.67,164.64,10.33253432]
[1747520250347,144.19279054,164.67,164.63,10.33253432]
[1747520250548,144.19279054,164.67,164.64,10.33253432]
[1747520251370,6.07030909,164.74,164.67,8.0096]
[1747520251531,10.33253432,164.74,164.67,8.0096]
[1747520251736,10.33253432,164.72,164.67,6.4417]
[1747520253335,10.33253432,164.72,164.67,16.77423432]
[1747520253536,26.7592087,164.73,164.68,10.33253432]
[1747520253961,16.42667438,164.73,164.69,10.33253432]
[1747520254770,16.42667438,164.73,164.7,10.33253432]
[1747520254968,16.42667438,164.73,164.69,10.33253432]
[1747520255266,16.42667438,164.73,164.7,10.33253432]
[1747520255463,16.42667438,164.73,164.7,16.40400487]
[1747520256384,16.42667438,164.73,164.71,10.33253432]
[1747520256679,16.42667438,164.73,164.72,10.33253432]
[1747520256885,16.42667438,164.73,164.7,6.07147055]
[1747520256886,16.42667438,164.73,164.7,10.33253432]
[1747520257250,16.42667438,164.73,164.69,16.40441419]
[1747520257451,16.42667438,164.73,164.7,10.33253432]
[1747520257661,16.42667438,164.73,164.72,10.33253432]
[1747520258062,138.11983306,164.75,164.72,10.33253432]
[1747520260380,138.11983306,164.75,164.71,10.33253432]
[1747520260562,144.18970106,164.75,164.71,10.33253432]
[1747520260767,10.33253432,164.74,164.67,6.4417]
[1747520260975,138.11983306,164.73,164.69,10.33253432]
[1747520261656,144.19042739,164.73,164.7,10.33253432]
[1747520261966,138.11983306,164.73,164.72,10.33253432]
[1747520268489,138.11983306,164.73,164.69,28.10120375]
[1747520268676,138.11983306,164.73,164.72,10.33253432]
[1747520277994,144.19037273,164.73,164.71,10.33253432]
[1747520280005,138.11983306,164.73,164.71,10.33253432]
[1747520280293,138.11983306,164.73,164.67,6.4417]
[1747520280294,144.19038378,164.73,164.67,6.4417]
[1747520280482,148.45236738,164.72,164.65,21.9783]
[1747520280685,148.45236738,164.72,164.67,10.33253432]
[1747520280985,148.45236738,164.72,164.68,10.33253432]
[1747520281180,10.33253432,164.71,164.65,1.5383]
[1747520281378,10.33253432,164.71,164.66,10.33253432]
[1747520282498,10.33253432,164.69,164.63,6.1182]
[1747520282673,10.33253432,164.68,164.63,10.33253432]
[1747520282871,138.11983306,164.67,164.64,10.33253432]
[1747520284394,6.07312036,164.66,164.64,10.33253432]
[1747520284596,6.07312036,164.66,164.62,10.33253432]
[1747520284804,6.07312036,164.66,164.64,10.33253432]
[1747520285490,138.11983306,164.67,164.65,10.33253432]
[1747520285673,138.11983306,164.67,164.66,10.33253432]
[1747520285875,144.19258462,164.67,164.62,20.42]
[1747520286090,144.19258462,164.67,164.65,10.33253432]
[1747520286369,144.19258462,164.67,164.62,20.42]
[1747520286589,144.19258462,164.67,164.65,10.33253432]
[1747520286874,144.19258462,164.67,164.61,1.5383]
[1747520287093,144.19258462,164.67,164.63,10.33253432]
[1747520289793,144.19258462,164.67,164.59,6.1182]
[1747520289794,10.33253432,164.65,164.59,6.1182]
[1747520289997,138.11983306,164.64,164.61,10.33253432]
[1747520290406,138.11983306,164.64,164.6,10.33253432]
[1747520291217,26.49275156,164.67,164.56,11.54756367]
[1747520291512,10.33253432,164.63,164.58,10.33253432]
[1747520291809,6.07385811,164.64,164.6,10.33253432]
[1747520292105,16.40639243,164.64,164.59,10.33253432]
[1747520293087,6.07385811,164.64,164.6,10.33253432]
[1747520293301,6.07385811,164.64,164.61,10.33253432]
[1747520293803,6.07385811,164.64,164.6,10.33253432]
[1747520294681,10.33253432,164.64,164.6,10.33253432]
[1747520294876,10.33253432,164.64,164.58,20.42]
[1747520295084,10.33253432,164.65,164.6,10.33253432]
[1747520295378,21.25592128,164.66,164.58,20.42]
[1747520295600,10.33253432,164.64,164.59,10.33253432]
[1747520296413,10.33253432,164.65,164.61,10.33253432]
[1747520297079,148.45236738,164.65,164.61,10.33253432]
[1747520297277,138.11983306,164.65,164.64,10.33253432]
[1747520297982,138.11983306,164.65,164.62,10.33253432]
[1747520298407,6.07385811,164.64,164.62,10.33253432]
[1747520299083,144.19340823,164.65,164.63,10.33253432]
[1747520299298,138.11983306,164.65,164.64,10.33253432]
[1747520301091,138.11983306,164.65,164.64,16.40639243]
[1747520301293,138.11983306,164.7,164.64,22.52739243]
[1747520301495,144.1915384,164.7,164.67,10.33253432]
[1747520301907,138.11983306,164.7,164.68,10.33253432]
[1747520302893,138.11983306,164.7,164.65,20.42]
[1747520303095,138.11983306,164.7,164.68,10.33253432]
[1747520303331,138.11983306,164.7,164.69,10.33253432]
[1747520304089,27.15562177,164.75,164.69,10.33253432]
[1747520304392,27.15562177,164.75,164.72,10.33253432]
[1747520304833,12.80552831,164.75,164.72,10.33253432]
[1747520305324,23.13806263,164.75,164.67,1.5405]
[1747520305612,23.13806263,164.75,164.7,10.33253432]
[1747520305818,23.13806263,164.75,164.67,1.5405]
[1747520306115,23.13806263,164.75,164.7,10.33253432]
[1747520306898,10.33253432,164.71,164.66,10.33253432]
[1747520308592,6.07164541,164.7,164.64,6.121]
[1747520308795,148.45236738,164.69,164.64,16.45353432]
[1747520309320,138.11983306,164.69,164.65,10.33253432]
[1747520309710,148.45236738,164.69,164.64,10.33253432]
[1747520310415,138.11983306,164.69,164.64,10.33253432]
[1747520310598,6.0723828,164.68,164.64,10.33253432]
[1747520310802,6.0723828,164.68,164.6,6.3367]
[1747520311104,138.11983306,164.67,164.64,10.33253432]
[1747520312218,6.07312036,164.66,164.64,10.33253432]
[1747520312407,144.19271346,164.67,164.64,10.33253432]
[1747520317005,144.19291296,164.67,164.61,6.07493197]
[1747520317207,144.19291296,164.67,164.64,10.33253432]
[1747520317421,10.33253432,164.66,164.6,6.3367]
[1747520317714,154.52544728,164.67,164.62,10.33253432]
[1747520319735,10.33253432,164.66,164.6,6.3367]
[1747520319912,10.33253432,164.65,164.6,16.66923432]
[1747520320111,10.33253432,164.66,164.61,10.33253432]
[1747520320309,10.33253432,164.65,164.6,6.3367]
[1747520320510,10.33253432,164.65,164.61,10.33253432]
[1747520320827,10.33253432,164.65,164.6,10.33253432]
[1747520321133,10.33253432,164.65,164.56,16.68673432]
[1747520321134,10.33253432,164.63,164.56,26.7742]
[1747520321313,6.07496506,164.61,164.58,10.33253432]
[1747520322637,6.07496506,164.61,164.59,10.33253432]
[1747520323729,144.19446791,164.62,164.6,10.33253432]
[1747520323911,144.19446791,164.62,164.58,10.33253432]
[1747520324107,144.19446791,164.62,164.56,26.7742]
[1747520324424,144.19446791,164.62,164.58,10.33253432]
[1747520326234,144.19446791,164.62,164.59,10.33253432]
[1747520327362,144.19446791,164.62,164.56,26.7742]
[1747520327639,154.52700223,164.62,164.58,10.33253432]
[1747520327827,144.19446791,164.62,164.59,10.33253432]
[1747520329319,144.19446791,164.62,164.6,10.33253432]
[1747520330434,138.11983306,164.62,164.6,10.33253432]
[1747520330926,144.19446564,164.62,164.6,10.33253432]
[1747520331129,144.11596838,164.62,164.6,10.33253432]
[1747520331941,138.0413358,164.62,164.61,10.33253432]
[1747520332439,20.4,164.67,164.61,10.33253432]
[1747520332640,20.4,164.67,164.63,10.33253432]
[1747520332937,30.73253432,164.67,164.63,10.33253432]
[1747520333142,20.4,164.67,164.63,10.33253432]
[1747520333446,6.07312036,164.66,164.63,10.33253432]
[1747520334942,6.07312036,164.66,164.62,10.33253432]
[1747520335131,16.40565468,164.66,164.62,10.33253432]
[1747520335746,6.07312036,164.66,164.62,10.33253432]
[1747520336446,6.07312036,164.66,164.63,10.33253432]
[1747520336746,6.07312036,164.66,164.64,10.33253432]
[1747520337443,20.4,164.67,164.65,10.33253432]
[1747520337640,144.11358439,164.69,164.66,10.33253432]
[1747520337943,138.0413358,164.69,164.67,10.33253432]
[1747520338428,144.11335217,164.69,164.67,10.33253432]
[1747520338615,144.11335217,164.69,164.66,10.33253432]
[1747520338821,144.11335217,164.69,164.67,10.33253432]
[1747520340020,144.11335217,164.69,164.64,6.07380501]
[1747520340021,138.0413358,164.69,164.64,6.07380501]
[1747520340227,138.0413358,164.69,164.67,10.33253432]
[1747520340628,20.4,164.72,164.64,6.07380501]
[1747520340629,20.4,164.72,164.68,10.33253432]
[1747520340931,20.4,164.72,164.69,10.33253432]
[1747520341126,144.77695757,164.75,164.7,10.33253432]
[1747520341357,161.17937553,164.75,164.7,10.33253432]
[1747520341650,150.84684121,164.75,164.71,10.33253432]
[1747520342153,144.77695757,164.75,164.71,10.33253432]
[1747520342329,144.77695757,164.75,164.74,10.33253432]
[1747520342671,138.0413358,164.81,164.74,10.33253432]
[1747520342820,138.0413358,164.81,164.78,10.33253432]
[1747520343021,144.10901578,164.81,164.75,20.4]
[1747520343342,10.33253432,164.8,164.75,10.33253432]
[1747520343523,144.10901578,164.81,164.76,10.33253432]
[1747520343722,154.4415501,164.81,164.76,10.33253432]
[1747520344230,10.33253432,164.8,164.76,10.33253432]
[1747520345637,6.06832938,164.79,164.75,10.33253432]
[1747520347751,148.37387012,164.78,164.7,6.6555]
[1747520347942,10.33253432,164.77,164.72,10.33253432]
[1747520348338,148.37387012,164.78,164.73,10.33253432]
[1747520349640,6.06906597,164.77,164.73,10.33253432]
[1747520349857,16.40160029,164.77,164.72,10.33253432]
[1747520350833,144.11013387,164.78,164.73,10.33253432]
[1747520351035,154.44266819,164.78,164.73,10.33253432]
[1747520351556,10.33253432,164.77,164.72,10.33253432]
[1747520351745,10.33253432,164.77,164.7,6.6555]
[1747520351947,10.33253432,164.73,164.69,1.6211]
[1747520352160,18.64964886,164.75,164.68,10.33253432]
[1747520352332,10.33253432,164.74,164.69,10.33253432]
[1747520352760,10.33253432,164.73,164.68,10.33253432]
[1747520352961,16.40328133,164.73,164.68,10.33253432]
[1747520353457,16.40328133,164.73,164.69,10.33253432]
[1747520353768,138.0413358,164.76,164.72,10.33253432]
[1747520353943,138.0413358,164.76,164.73,10.33253432]
[1747520354144,138.0413358,164.76,164.74,10.33253432]
[1747520354463,138.0413358,164.76,164.73,10.33253432]
[1747520355041,144.11082478,164.76,164.71,20.38]
[1747520355256,154.4433591,164.76,164.71,30.71253432]
[1747520355459,138.0413358,164.76,164.73,10.33253432]
[1747520359764,144.11085258,164.76,164.73,10.33253432]
[1747520360065,138.0413358,164.76,164.73,10.33253432]
[1747520362866,138.0413358,164.76,164.72,16.40342162]
[1747520363670,138.0413358,164.76,164.73,10.33253432]
[1747520363972,144.11079409,164.76,164.73,10.33253432]
[1747520365482,138.0413358,164.76,164.73,10.33253432]
[1747520365669,138.0413358,164.76,164.74,10.33253432]
[1747520366167,138.0413358,164.76,164.73,10.33253432]
[1747520366476,138.0413358,164.76,164.75,10.33253432]
[1747520369066,6.06501698,164.88,164.75,33.1792021]
[1747520369371,10.33253432,164.86,164.81,10.33253432]
[1747520369776,10.33253432,164.84,164.8,10.33253432]
[1747520370168,6.06612071,164.85,164.8,10.33253432]
[1747520370369,10.33253432,164.85,164.81,10.33253432]
[1747520370562,10.33253432,164.87,164.83,10.33253432]
[1747520370756,10.33253432,164.86,164.81,10.33253432]
[1747520371882,6.06612071,164.85,164.81,10.33253432]
[1747520372456,16.39865503,164.85,164.81,10.33253432]
[1747520373792,10.33253432,164.84,164.8,10.33253432]
[1747520374073,16.39865503,164.85,164.8,10.33253432]
[1747520375376,154.43999083,164.85,164.8,10.33253432]
[1747520375976,10.33253432,164.82,164.77,10.33253432]
[1747520376163,10.33253432,164.8,164.76,10.33253432]
[1747520376487,10.33253432,164.78,164.75,20.36]
[1747520376784,10.33253432,164.78,164.74,10.33253432]
[1747520376785,10.33253432,164.78,164.73,16.80893432]
[1747520377954,16.40135021,164.78,164.74,10.33253432]
[1747520378387,6.06881589,164.78,164.74,10.33253432]
[1747520380082,24.71724184,164.81,164.74,10.33253432]
[1747520380258,10.33253432,164.79,164.74,10.33253432]
[1747520380654,10.33253432,164.79,164.75,10.33253432]
[1747520381070,24.71724184,164.81,164.75,10.33253432]
[1747520381383,16.40120234,164.79,164.75,10.33253432]
[1747520381555,6.06866802,164.79,164.76,10.33253432]
[1747520383285,6.06866802,164.79,164.75,10.33253432]
[1747520384185,16.40120234,164.79,164.74,10.33253432]
[1747520384485,16.40120234,164.79,164.75,10.33253432]
[1747520384781,6.06866802,164.79,164.75,10.33253432]
[1747520384984,16.40120234,164.79,164.74,10.33253432]
[1747520385188,16.40120234,164.79,164.71,7.61273681]
[1747520385189,10.33253432,164.77,164.72,10.33253432]
[1747520385488,138.0413358,164.78,164.72,10.33253432]
[1747520385489,10.33253432,164.76,164.72,10.33253432]
[1747520386066,10.33253432,164.77,164.72,10.33253432]
[1747520386278,16.40184453,164.77,164.72,10.33253432]
[1747520386485,154.44267417,164.78,164.73,10.33253432]
[1747520387087,144.11013985,164.78,164.73,10.33253432]
[1747520387584,154.44267417,164.78,164.73,10.33253432]
[1747520389882,154.44267417,164.78,164.73,10.25403705]
[1747520390390,144.11044029,164.77,164.74,10.33253432]
[1747520391898,138.0413358,164.77,164.74,10.33253432]
[1747520394492,144.11040236,164.77,164.74,10.33253432]
[1747520395495,144.11040236,164.77,164.73,10.33253432]
[1747520397196,144.11040236,164.77,164.69,6.4931]
[1747520397414,10.33253432,164.74,164.69,6.4931]
[1747520397571,148.37387012,164.76,164.71,10.33253432]
[1747520398083,138.0413358,164.76,164.72,10.33253432]
[1747520398707,6.06980273,164.75,164.72,10.33253432]
[1747520400702,138.0413358,164.76,164.72,10.33253432]
[1747520400882,30.69253432,164.8,164.75,10.33253432]
[1747520401602,10.33253432,164.79,164.74,10.33253432]
[1747520401786,16.4008637,164.79,164.74,10.33253432]
[1747520403074,10.33253432,164.77,164.72,10.33253432]
[1747520403600,10.33253432,164.78,164.73,10.33253432]
[1747520404201,16.40160029,164.77,164.72,10.33253432]
[1747520405386,10.33253432,164.76,164.71,10.33253432]
[1747520406098,144.11010789,164.78,164.74,10.33253432]
[1747520406271,138.0413358,164.78,164.75,10.33253432]
[1747520409506,144.11004708,164.78,164.75,10.33253432]
[1747520409707,154.4425814,164.78,164.73,11.94363432]
[1747520410389,10.33253432,164.77,164.73,11.94363432]
[1747520411008,154.4425814,164.78,164.73,11.94363432]
[1747520411208,154.4425814,164.78,164.74,10.33253432]
[1747520411887,154.4425814,164.78,164.73,11.94363432]
[1747520413007,144.11004708,164.78,164.73,11.94363432]
[1747520413202,154.4425814,164.78,164.73,11.94363432]
[1747520413913,144.11004708,164.78,164.74,10.33253432]
[1747520414206,144.11004708,164.78,164.73,7.68156006]
[1747520414207,138.0413358,164.78,164.76,10.33253432]
[1747520414597,138.0413358,164.78,164.75,10.33253432]
[1747520415886,138.0413358,164.78,164.73,7.6815131]
[1747520416109,138.0413358,164.78,164.76,10.33253432]
[1747520417591,138.0413358,164.78,164.77,10.33253432]
[1747520418902,138.0413358,164.78,164.76,10.33253432]
[1747520420010,138.0413358,164.78,164.72,10.33253432]
[1747520420011,10.33253432,164.77,164.71,10.33253432]
[1747520420201,10.33253432,164.76,164.71,10.33253432]
[1747520421202,6.06980273,164.75,164.71,10.33253432]
[1747520422317,6.06980273,164.75,164.72,10.33253432]
[1747520423117,153.21307994,164.78,164.73,10.33253432]
[1747520423118,148.37387012,164.78,164.73,10.33253432]
[1747520423617,148.37387012,164.78,164.74,10.33253432]
[1747520423618,6.06918225,164.77,164.74,10.33253432]
[1747520426899,6.06918225,164.77,164.73,10.33253432]
[1747520434918,16.40171657,164.77,164.73,10.33253432]
[1747520436531,6.06918225,164.77,164.73,10.33253432]
[1747520438134,16.40171657,164.77,164.73,10.33253432]
[1747520438933,10.33253432,164.76,164.71,10.33253432]
[1747520439635,6.06980273,164.75,164.71,10.33253432]
[1747520439837,6.06980273,164.75,164.72,10.33253432]
[1747520443553,31.57426521,164.77,164.72,10.33253432]
[1747520446733,144.1103124,164.78,164.75,10.33253432]
[1747520446939,144.1103124,164.78,164.76,10.33253432]
[1747520447468,144.1103124,164.78,164.75,10.33253432]
[1747520448332,144.1103124,164.78,164.76,10.33253432]
[1747520452536,144.1103124,164.78,164.75,10.33253432]
[1747520452737,144.1103124,164.78,164.72,6.07083442]
[1747520452921,144.1103124,164.78,164.7,1.21411346]
[1747520452922,154.44284672,164.78,164.74,10.33253432]
[1747520453114,144.1103124,164.78,164.74,10.33253432]
[1747520454211,144.1103124,164.78,164.72,6.07084434]
[1747520454412,144.1103124,164.78,164.74,10.33253432]
[1747520455740,144.1103124,164.78,164.71,6.07127678]
[1747520455928,10.33253432,164.77,164.73,10.33253432]
[1747520456535,10.33253432,164.77,164.72,10.33253432]
[1747520457423,6.06943432,164.76,164.72,10.33253432]
[1747520458440,6.06943432,164.76,164.73,10.33253432]
[1747520459640,6.06906597,164.77,164.73,10.33253432]
[1747520459965,10.33253432,164.74,164.69,8.1356]
[1747520460150,10.33253432,164.72,164.69,8.1356]
[1747520460326,10.33253432,164.72,164.69,6.4931]
[1747520460532,10.33253432,164.71,164.67,10.33253432]
[1747520460725,18.64964886,164.74,164.67,10.33253432]
[1747520461048,10.33253432,164.71,164.67,10.33253432]
[1747520461543,10.33253432,164.7,164.65,7.681]
[1747520461721,6.07201408,164.69,164.65,7.681]
[1747520461928,6.07201408,164.69,164.66,10.33253432]
[1747520462143,6.07201408,164.69,164.65,7.681]
[1747520462144,16.4045484,164.69,164.65,18.01353432]
[1747520462352,16.4045484,164.69,164.65,10.33253432]
[1747520465251,6.07175622,164.7,164.67,10.33253432]
[1747520465631,16.40429054,164.7,164.62,46.61450735]
[1747520465831,6.07175622,164.7,164.65,10.33253432]
[1747520466025,16.40429054,164.7,164.65,10.33253432]
[1747520466241,138.0413358,164.71,164.67,10.33253432]
[1747520466446,138.0413358,164.71,164.7,10.33253432]
[1747520467651,6.06956736,164.76,164.7,10.33253432]
[1747520467966,4.21647739,164.77,164.75,10.33253432]
[1747520468281,10.28559828,164.77,164.75,10.33253432]
[1747520468436,16.40165521,164.77,164.68,40.54]
[1747520468640,16.40165521,164.77,164.72,10.33253432]
[1747520469164,6.06912089,164.77,164.73,10.33253432]
[1747520469536,21.85035333,164.79,164.76,10.33253432]
[1747520469736,21.85035333,164.79,164.78,10.33253432]
[1747520471761,19.34145333,164.79,164.78,10.33253432]
[1747520473964,25.40991211,164.79,164.76,10.33253432]
[1747520474465,25.40991211,164.79,164.75,30.57253432]
[1747520475055,35.74244643,164.79,164.75,20.24]
[1747520475646,25.40991211,164.79,164.75,30.57253432]
[1747520476271,35.74244643,164.79,164.75,30.57253432]
[1747520476473,35.74244643,164.79,164.75,20.24]
[1747520476653,10.33253432,164.78,164.75,20.24]
[1747520476855,10.33253432,164.78,164.73,10.33253432]
[1747520477167,173.78378223,164.79,164.75,10.33253432]
[1747520477765,173.78378223,164.79,164.74,10.33253432]
[1747520478358,163.45124791,164.79,164.75,10.33253432]
[1747520478763,163.45124791,164.79,164.76,10.33253432]
[1747520478967,157.38278913,164.79,164.78,10.33253432]
[1747520479757,157.38278913,164.79,164.78,16.40123197]
[1747520481682,138.0413358,164.79,164.78,16.40123197]
[1747520482183,16.39853975,164.86,164.78,16.40123197]
[1747520482375,16.39853975,164.86,164.81,10.33253432]
[1747520483076,10.33253432,164.85,164.81,10.33253432]
[1747520483563,6.06648871,164.84,164.81,10.33253432]
[1747520483765,6.06553195,164.87,164.83,10.33253432]
[1747520483960,16.39806627,164.87,164.83,10.33253432]
[1747520485184,6.06553195,164.87,164.83,10.33253432]
[1747520485961,16.39806627,164.87,164.83,10.33253432]
[1747520487192,10.33253432,164.86,164.82,10.33253432]
[1747520487494,10.33253432,164.86,164.81,10.33253432]
[1747520488491,10.33253432,164.86,164.82,10.33253432]
[1747520488784,6.06612071,164.85,164.82,10.33253432]
[1747520489873,6.06612071,164.85,164.81,10.33253432]
[1747520490468,6.06612071,164.85,164.82,10.33253432]
[1747520490667,138.0413358,164.88,164.8,18.05125776]
[1747520490887,138.0413358,164.88,164.85,10.33253432]
[1747520491370,148.37387012,164.88,164.84,10.33253432]
[1747520491774,154.43902992,164.88,164.84,10.33253432]
[1747520491970,10.33253432,164.87,164.8,1.6509]
[1747520492387,10.33253432,164.86,164.82,10.33253432]
[1747520492764,10.33253432,164.86,164.81,10.33253432]
[1747520493091,10.33253432,164.85,164.81,10.33253432]
[1747520493483,10.33253432,164.85,164.8,10.33253432]
[1747520494184,6.06648871,164.84,164.81,10.33253432]
[1747520495576,6.06648871,164.84,164.77,26.5967]
[1747520495773,31.56524482,164.84,164.79,10.33253432]
[1747520496077,31.56524482,164.84,164.8,10.33253432]
[1747520496268,16.39902303,164.84,164.8,10.33253432]
[1747520497587,6.06648871,164.84,164.8,10.33253432]
[1747520499798,6.06648871,164.84,164.77,12.44572522]
[1747520499973,6.06648871,164.84,164.8,10.33253432]
[1747520501270,144.10782451,164.84,164.8,10.33253432]
[1747520501592,154.44035883,164.84,164.8,10.33253432]
[1747520502094,144.10782451,164.84,164.8,10.33253432]
[1747520504581,144.10782451,164.84,164.81,10.33253432]
[1747520505094,154.44035883,164.84,164.8,10.33253432]
[1747520505310,10.33253432,164.82,164.76,1.6221]
[1747520505476,10.33253432,164.82,164.77,10.33253432]
[1747520505674,148.37387012,164.83,164.78,10.33253432]
[1747520505878,144.10824814,164.83,164.79,10.33253432]
[1747520506083,144.10824814,164.83,164.8,10.33253432]
[1747520506485,144.10824814,164.83,164.79,10.33253432]
[1747520507199,144.10824814,164.83,164.81,10.33253432]
[1747520508803,138.0413358,164.83,164.82,10.33253432]
[1747520513090,6.06538484,164.87,164.82,10.33253432]
[1747520513488,6.06538484,164.87,164.83,10.33253432]
[1747520520523,6.06538484,164.87,164.84,10.33253432]
[1747520521095,138.0413358,164.88,164.86,10.33253432]
[1747520521295,144.1065238,164.88,164.86,10.33253432]
[1747520521608,144.1065238,164.88,164.85,10.33253432]
[1747520522425,144.1065238,164.88,164.82,20.18]
[1747520522722,10.33253432,164.84,164.79,10.33253432]
[1747520522939,10.33253432,164.83,164.78,10.33253432]
[1747520523096,10.33253432,164.84,164.79,10.33253432]
[1747520523295,10.33253432,164.84,164.8,10.33253432]
[1747520523926,6.06685676,164.83,164.8,10.33253432]
[1747520528312,6.06575275,164.86,164.82,10.33253432]
[1747520528514,6.06575275,164.86,164.83,10.33253432]
[1747520529033,144.10685849,164.87,164.84,10.33253432]
[1747520529407,144.10685849,164.87,164.77,22.45513277]
[1747520529606,144.10685849,164.87,164.83,10.33253432]
[1747520530431,144.10685849,164.87,164.84,10.33253432]
[1747520530929,144.10685849,164.87,164.83,10.33253432]
[1747520535937,144.10685849,164.87,164.85,10.33253432]
[1747520535938,138.0413358,164.87,164.85,10.33253432]
[1747520537451,153.47917712,164.92,164.86,10.33253432]
[1747520537736,163.81171144,164.92,164.88,10.33253432]
[1747520538122,163.81171144,164.92,164.87,10.33253432]
[1747520538435,6.06405472,164.91,164.87,10.33253432]
[1747520538614,16.39658904,164.91,164.82,21.71]
[1747520538821,10.33253432,164.89,164.85,10.33253432]
[1747520539517,10.33253432,164.88,164.84,10.33253432]
[1747520539830,148.37387012,164.87,164.83,10.33253432]
[1747520540032,10.33253432,164.85,164.81,10.33253432]
[1747520540247,10.33253432,164.85,164.8,10.33253432]
[1747520540432,6.06648871,164.84,164.8,10.33253432]
[1747520540608,6.06648871,164.84,164.78,21.7973]
[1747520540809,6.06648871,164.84,164.8,10.33253432]
[1747520544060,148.37387012,164.83,164.78,10.33253432]
[1747520544650,10.33253432,164.82,164.77,10.33253432]
[1747520545849,6.06759298,164.81,164.77,10.33253432]
[1747520546945,6.06759298,164.81,164.78,10.33253432]
[1747520551251,6.06722485,164.82,164.78,10.33253432]
[1747520551452,16.39975917,164.82,164.78,10.33253432]
[1747520553030,10.33253432,164.8,164.75,10.33253432]
[1747520553352,156.69098466,164.81,164.74,1.6373]
[1747520553353,10.33253432,164.79,164.74,10.33253432]
[1747520554051,10.33253432,164.78,164.72,26.6359]
[1747520554360,6.06648871,164.84,164.77,10.33253432]
[1747520554534,10.33253432,164.85,164.8,10.33253432]
[1747520554729,18.64964886,164.84,164.8,10.33253432]
[1747520555438,28.98218318,164.84,164.8,10.33253432]
[1747520555955,18.64964886,164.85,164.8,10.33253432]
[1747520556170,28.98218318,164.85,164.8,10.33253432]
[1747520556656,138.0413358,164.87,164.82,10.33253432]
[1747520556847,148.37387012,164.87,164.83,10.33253432]
[1747520557855,6.06575275,164.86,164.83,10.33253432]
[1747520558055,6.06575275,164.86,164.82,10.33253432]
[1747520559159,16.39828707,164.86,164.81,10.33253432]
[1747520560560,10.33253432,164.85,164.81,10.33253432]
[1747520561965,16.39828707,164.86,164.81,10.33253432]
[1747520563156,6.06575275,164.86,164.82,10.33253432]
[1747520563755,6.06575275,164.86,164.83,10.33253432]
[1747520564641,6.06575275,164.86,164.82,10.33253432]
[1747520564843,16.39828707,164.86,164.81,10.33253432]
[1747520565255,15.89828707,164.86,164.81,10.33253432]
[1747520566364,5.56575275,164.86,164.81,10.33253432]
[1747520566561,5.56575275,164.86,164.82,10.33253432]
[1747520567651,144.10685805,164.87,164.84,10.33253432]
[1747520567848,144.10685805,164.87,164.82,1.5642]
[1747520568046,144.10685805,164.87,164.83,10.33253432]